fUSD/lending_fUSD_20240213
["ID","MTS","AMOUNT","RATE_DAILY","PERIOD"]
[313922715,1707825042554,-526.95212901,0.00028767,2]
[313922716,1707825042563,-500.0,0.00028767,2]
[313922717,1707825042573,-500.0,0.00028767,2]
[313922718,1707825042583,-500.0,0.00028767,2]
[313922719,1707825042593,-500.0,0.00028767,2]
[313922720,1707825042604,-615.65669573,0.00028767,2]
[313922721,1707825042614,-507.43858752,0.00028767,2]
[313922722,1707825042624,-500.0,0.00028767,2]
[313922723,1707825042633,-500.0,0.00028767,2]
[313922724,1707825042642,-500.0,0.00028767,2]
[313922725,1707825042651,-500.0,0.00028767,2]
[313922726,1707825042662,-500.0,0.00028767,2]
[313922727,1707825042671,-500.0,0.00028767,2]
[313922728,1707825042680,-518.87748423,0.00028767,2]
[313922729,1707825042690,-524.73145226,0.00028767,2]
[313922730,1707825042698,-500.0,0.00028767,2]
[313922731,1707825042708,-500.0,0.00028767,2]
[313922732,1707825042717,-500.0,0.00028767,2]
[313922733,1707825042727,-530.57866567,0.00028767,2]
[313922734,1707825042739,-500.0,0.00028767,2]
[313922735,1707825042748,-500.0,0.00028767,2]
[313922736,1707825042758,-533.79886002,0.00028767,2]
[313922737,1707825042769,-519.26276926,0.00028767,2]
[313922738,1707825042780,-500.0,0.00028767,2]
[313922739,1707825042791,-500.0,0.00028767,2]
[313922740,1707825042800,-533.983118,0.00028767,2]
[313922741,1707825042810,-525.76534301,0.00028767,2]
[313922742,1707825042821,-500.0,0.00028767,2]
[313922743,1707825042834,-501.229903,0.00028767,2]
[313922744,1707825042844,-500.0,0.00028767,2]
[313922745,1707825042854,-500.0,0.00028767,2]
[313922746,1707825042865,-526.70803065,0.00028767,2]
[313922748,1707825042874,-500.0,0.00028767,2]
[313922749,1707825042883,-500.0,0.00028767,2]
[313922750,1707825042892,-500.0,0.00028767,2]
[313922751,1707825042902,-500.0,0.00028767,2]
[313922752,1707825042912,-500.0,0.00028767,2]
[313922753,1707825042922,-500.0,0.00028767,2]
[313922754,1707825042933,-500.0,0.00028767,2]
[313922755,1707825042944,-500.0,0.00028767,2]
[313922756,1707825042953,-500.0,0.00028767,2]
[313922757,1707825042962,-500.0,0.00028767,2]
[313922759,1707825042972,-500.0,0.00028767,2]
[313922760,1707825042981,-500.0,0.00028767,2]
[313922761,1707825042990,-500.0,0.00028767,2]
[313922762,1707825042999,-500.0,0.00028767,2]
[313922763,1707825043008,-500.0,0.00028767,2]
[313922764,1707825043018,-500.0,0.00028767,2]
[313922765,1707825043027,-500.0,0.00028767,2]
[313922766,1707825043036,-500.0,0.00028767,2]
[313922767,1707825043045,-500.0,0.00028767,2]
[313922768,1707825043055,-500.0,0.00028767,2]
[313922769,1707825043064,-500.0,0.00028767,2]
[313922770,1707825043073,-500.0,0.00028767,2]
[313922771,1707825043083,-500.0,0.00028767,2]
[313922772,1707825043092,-500.0,0.00028767,2]
[313922773,1707825043102,-500.0,0.00028767,2]
[313922774,1707825043111,-1000.0,0.00028767,7]
[313922775,1707825043120,-500.0,0.00028767,2]
[313922776,1707825043129,-500.0,0.00028767,2]
[313922777,1707825043139,-500.0,0.00028767,2]
[313922778,1707825043148,-500.0,0.00028767,2]
[313922779,1707825043157,-500.0,0.00028767,2]
[313922780,1707825043167,-500.0,0.00028767,2]
[313922781,1707825043176,-500.0,0.00028767,2]
[313922782,1707825043185,-500.0,0.00028767,2]
[313922783,1707825043195,-500.0,0.00028767,2]
[313922784,1707825043205,-500.0,0.00028767,2]
[313922785,1707825043215,-500.0,0.00028767,2]
[313922786,1707825043225,-500.0,0.00028767,2]
[313922787,1707825043234,-500.0,0.00028767,2]
[313922788,1707825043244,-500.0,0.00028767,2]
[313922789,1707825043254,-359.47469122,0.00028767,2]
[313922790,1707825043263,-500.0,0.00028767,2]
[313922791,1707825043273,-500.0,0.00028767,2]
[313922792,1707825043283,-500.0,0.00028767,2]
[313922793,1707825043293,-510.98758277,0.00028767,2]
[313922794,1707825043303,-500.0,0.00028767,2]
[313922795,1707825043313,-500.0,0.00028767,2]
[313922796,1707825043324,-500.0,0.00028767,2]
[313922797,1707825043333,-508.70345404,0.00028767,2]
[313922798,1707825043343,-500.0,0.00028767,2]
[313922799,1707825043354,-500.0,0.00028767,2]
[313922800,1707825043364,-511.88163367,0.00028767,2]
[313922801,1707825043374,-525.16268876,0.00028767,2]
[313922802,1707825043383,-500.0,0.00028767,2]
[313922803,1707825043393,-500.0,0.00028767,2]
[313922804,1707825043403,-500.0,0.00028767,2]
[313922805,1707825043412,-500.0,0.00028767,2]
[313922806,1707825043422,-491.49109234,0.00028767,2]
[313922807,1707825043431,-500.0,0.00028767,2]
[313922808,1707825043441,-500.0,0.00028767,2]
[313922809,1707825043450,-500.0,0.00028767,2]
[313922810,1707825043459,-500.0,0.00028767,2]
[313922811,1707825043469,-1084.78,0.00028767,2]
[313922812,1707825043478,-500.0,0.00028767,2]
[313922813,1707825043487,-309.52279728,0.00028767,2]
[313922814,1707825043496,-500.0,0.00028767,2]
[313922815,1707825043506,-1517.97,0.00028767,2]
[313922816,1707825043515,-500.0,0.00028767,2]
[313922817,1707825043524,-500.0,0.00028767,2]
[313922818,1707825043534,-500.0,0.00028767,2]
[313922819,1707825043544,-500.0,0.00028767,2]
[313922820,1707825043554,-500.0,0.00028767,2]
[313922821,1707825043565,-559.89514338,0.00028767,2]
[313922822,1707825043575,-500.0,0.00028767,2]
[313922823,1707825043584,-500.0,0.00028767,2]
[313922824,1707825043595,-517.59,0.00028767,2]
[313922825,1707825043604,-500.0,0.00028767,2]
[313922826,1707825043613,-20833.33,0.00028767,2]
[313922827,1707825043622,-500.0,0.00028767,2]
[313922828,1707825043632,-500.0,0.00028767,2]
[313922829,1707825043641,-500.0,0.00028767,2]
[313922830,1707825043651,-500.0,0.00028767,2]
[313922831,1707825043662,-500.0,0.00028767,2]
[313922832,1707825043672,-500.0,0.00028767,2]
[313922833,1707825043681,-500.0,0.00028767,2]
[313922834,1707825043692,-500.0,0.00028767,2]
[313922835,1707825043701,-855.21,0.00028767,2]
[313922836,1707825043713,-500.0,0.00028767,2]
[313922837,1707825043722,-500.0,0.00028767,2]
[313922838,1707825043732,-500.0,0.00028767,2]
[313922839,1707825043742,-500.0,0.00028767,2]
[313922840,1707825043754,-500.0,0.00028767,2]
[313922841,1707825043763,-500.0,0.00028767,2]
[313922842,1707825043773,-800.0,0.00028767,2]
[313922843,1707825043784,-189.54390815,0.00028778,2]
[313922844,1707825043794,-5000.0,0.00028778,2]
[313922845,1707825043803,-205.0,0.00028782,10]
[313922846,1707825043813,-1266.3585171,0.00028791,4]
[313922847,1707825043823,-633.58904261,0.00028793,2]
[313922848,1707825043833,-250.0,0.00028793,2]
[313922849,1707825043843,-500.0,0.00028793,2]
[313922850,1707825043852,-500.0,0.00028793,2]
[313922851,1707825043861,-500.0,0.00028793,2]
[313922852,1707825043871,-500.0,0.00028793,2]
[313922853,1707825043881,-388.92047623,0.00028793,2]
[313922854,1707825043892,-500.0,0.00028793,2]
[313922855,1707825043901,-509.52539758,0.00028793,2]
[313922856,1707825043911,-500.0,0.00028793,2]
[313922857,1707825043921,-500.0,0.00028793,2]
[313922858,1707825043931,-197.36579644,0.00028793,2]
[313922859,1707825043942,-534.20158857,0.00028793,2]
[313922860,1707825043951,-531.41171715,0.00028793,2]
[313922861,1707825043960,-527.27684306,0.00028793,2]
[313922862,1707825043969,-500.0,0.00028793,2]
[313922863,1707825043979,-500.0,0.00028793,2]
[313922864,1707825043989,-270.45073933,0.00028793,2]
[313922865,1707825043999,-500.0,0.00028793,2]
[313922866,1707825044009,-500.0,0.00028793,2]
[313922867,1707825044019,-504.64361516,0.00028793,2]
[313922868,1707825044030,-500.0,0.00028793,2]
[313922869,1707825044039,-500.0,0.00028793,2]
[313922870,1707825044051,-550.33874667,0.00028793,2]
[313922871,1707825044061,-500.0,0.00028793,2]
[313922872,1707825044070,-500.0,0.00028793,2]
[313922873,1707825044081,-500.0,0.00028793,2]
[313922874,1707825044090,-577.38135072,0.00028793,2]
[313922875,1707825044099,-500.0,0.00028793,2]
[313922876,1707825044108,-513.92416439,0.00028793,2]
[313922877,1707825044117,-500.0,0.00028793,2]
[313922878,1707825044126,-500.0,0.00028793,2]
[313922879,1707825044135,-506.24009431,0.00028793,2]
[313922880,1707825044144,-500.0,0.00028793,2]
[313922881,1707825044154,-500.0,0.00028793,2]
[313922882,1707825044163,-537.24593767,0.00028793,2]
[313922883,1707825044172,-500.0,0.00028793,2]
[313922884,1707825044181,-500.0,0.00028793,2]
[313922885,1707825044192,-500.0,0.00028793,2]
[313922886,1707825044202,-500.0,0.00028793,2]
[313922887,1707825044211,-530.03824509,0.00028793,2]
[313922888,1707825044220,-500.0,0.00028793,2]
[313922889,1707825044229,-500.0,0.00028793,2]
[313922890,1707825044239,-513.0187975,0.00028793,2]
[313922891,1707825044248,-500.0,0.00028793,2]
[313922892,1707825044257,-500.0,0.00028793,2]
[313922893,1707825044267,-519.45556714,0.00028793,2]
[313922894,1707825044276,-543.87724071,0.00028793,2]
[313922895,1707825044286,-512.91372318,0.00028793,2]
[313922896,1707825044295,-500.0,0.00028793,2]
[313922897,1707825044305,-500.0,0.00028793,2]
[313922898,1707825044314,-500.0,0.00028793,2]
[313922899,1707825044323,-500.0,0.00028793,2]
[313922900,1707825044333,-500.0,0.00028793,2]
[313922901,1707825044342,-500.01882486,0.00028793,2]
[313922902,1707825044351,-595.26857741,0.00028793,2]
[313922903,1707825044361,-546.47804263,0.00028793,2]
[313922904,1707825044370,-515.61636779,0.00028793,2]
[313922905,1707825044379,-500.0,0.00028793,2]
[313922906,1707825044388,-510.36106932,0.00028793,2]
[313922907,1707825044397,-500.0,0.00028793,2]
[313922908,1707825044406,-500.0,0.00028793,2]
[313922909,1707825044415,-500.0,0.00028793,2]
[313922910,1707825044424,-500.0,0.00028793,2]
[313922911,1707825044433,-216.47466056,0.00028793,2]
[313922912,1707825044444,-510.26615524,0.00028793,2]
[313922913,1707825044453,-513.78643283,0.00028793,2]
[313922914,1707825044463,-500.0,0.00028793,2]
[313922915,1707825044473,-500.0,0.00028793,2]
[313922916,1707825044483,-500.0,0.00028793,2]
[313922917,1707825044493,-512.47102481,0.00028793,2]
[313922918,1707825044504,-500.0,0.00028793,2]
[313922919,1707825044513,-500.0,0.00028793,2]
[313922920,1707825044524,-500.0,0.00028793,2]
[313922921,1707825044533,-500.0,0.00028793,2]
[313922922,1707825044543,-575.95297072,0.00028793,2]
[313922923,1707825044551,-248.12001275,0.00028793,2]
[313922924,1707825044560,-500.0,0.00028793,2]
[313922925,1707825044570,-500.0,0.00028793,2]
[313922926,1707825044579,-507.89167163,0.00028793,2]
[313922927,1707825044589,-505.18459794,0.00028793,2]
[313922928,1707825044599,-500.0,0.00028793,2]
[313922929,1707825044607,-509.96565593,0.00028793,2]
[313922930,1707825044617,-360.47823855,0.00028793,2]
[313922931,1707825044626,-635.14971316,0.00028793,2]
[313922932,1707825044637,-500.0,0.00028793,2]
[313922933,1707825044647,-500.0,0.00028793,2]
[313922934,1707825044659,-500.0,0.00028793,2]
[313922935,1707825044670,-510.65292142,0.00028793,2]
[313922936,1707825044680,-505.36604608,0.00028793,2]
[313922937,1707825044691,-500.0,0.00028793,2]
[313922938,1707825044700,-500.0,0.00028793,2]
[313922939,1707825044711,-404.44335281,0.00028793,2]
[313922940,1707825044722,-500.0,0.00028793,2]
[313922941,1707825044733,-587.40959512,0.00028793,2]
[313922942,1707825044745,-488.34282612,0.00028793,2]
[313922943,1707825044755,-648.05617928,0.00028793,2]
[313922944,1707825044764,-500.0,0.00028793,2]
[313922945,1707825044774,-500.0,0.00028793,2]
[313922946,1707825044786,-500.0,0.00028793,2]
[313922947,1707825044795,-646.94762478,0.00028793,2]
[313922948,1707825044806,-502.79148549,0.00028793,2]
[313922949,1707825044816,-500.0,0.00028793,2]
[313922950,1707825044825,-500.0,0.00028793,2]
[313922951,1707825044835,-500.0,0.00028793,2]
[313922952,1707825044845,-647.21164402,0.00028793,2]
[313922953,1707825044855,-506.84284393,0.00028793,2]
[313922954,1707825044865,-512.65214141,0.00028793,2]
[313922955,1707825044875,-500.0,0.00028793,2]
[313922956,1707825044885,-500.0,0.00028793,2]
[313922957,1707825044895,-500.0,0.00028793,2]
[313922958,1707825044905,-386.19195638,0.00028793,2]
[313922959,1707825044916,-500.0,0.00028793,2]
[313922960,1707825044926,-500.0,0.00028793,2]
[313922961,1707825044936,-314.8647886,0.00028793,2]
[313922962,1707825044946,-500.0,0.00028793,2]
[313922963,1707825044955,-500.0,0.00028793,2]
[313922964,1707825044964,-500.0,0.00028793,2]
[313922965,1707825044973,-674.56,0.00028793,2]
[313922966,1707825044983,-288.44286172,0.00028793,2]
[313922967,1707825044992,-500.0,0.00028793,2]
[313922968,1707825045001,-3000.0,0.000288,2]
[313922969,1707825045011,-3000.0,0.0002881,2]
[313922970,1707825045020,-3000.0,0.0002882,2]
[313922971,1707825045031,-324.2,0.00028822,2]
[313922972,1707825045042,-3000.0,0.0002883,2]
[313922973,1707825045052,-3000.0,0.0002884,2]
[313922974,1707825045061,-3000.0,0.0002885,2]
[313922975,1707825045072,-3630.85712913,0.0002885,6]
[313922976,1707825045082,-3000.0,0.0002886,2]
[313922977,1707825045091,-3000.0,0.0002887,2]
[313922978,1707825045101,-2090.7291501,0.00028876,2]
[313922979,1707825045110,-402.40247371,0.00028876,2]
[313922980,1707825045119,-259.07981157,0.00028876,2]
[313922981,1707825045127,-402.68003383,0.00028876,2]
[313922982,1707825045136,-584.84890433,0.00028877,2]
[313922983,1707825045147,-2607.54162794,0.00028878,2]
[313922984,1707825045157,-12054.88042205,0.00028878,2]
[313922985,1707825045167,-155.0,0.00028878,2]
[313922986,1707825045176,-511.96172653,0.00028878,2]
[313922987,1707825045186,-200.0,0.00028878,2]
[313922988,1707825045196,-869.33616524,0.00028878,2]
[313922989,1707825045205,-883.31627943,0.00028878,2]
[313922990,1707825045214,-245.39859863,0.00028878,2]
[313922991,1707825045223,-3000.0,0.0002888,2]
[313922992,1707825045232,-3000.0,0.0002889,2]
[313922993,1707825045242,-3000.0,0.000289,2]
[313922994,1707825045251,-3000.0,0.0002891,2]
[313922995,1707825045260,-3000.0,0.0002892,2]
[313922996,1707825045269,-3000.0,0.0002893,2]
[313922997,1707825045278,-155.77281016,0.00028936,2]
[313922998,1707825045287,-932.54314952,0.00028937,2]
[313922999,1707825045296,-200.03798975,0.00028938,2]
[313923000,1707825045305,-161.39038017,0.00028938,2]
[313923002,1707825045314,-291.78240896,0.00028938,2]
[313923004,1707825045323,-1037.87649803,0.00028939,2]
[313923005,1707825045333,-3000.0,0.0002894,2]
[313923007,1707825045342,-3000.0,0.0002895,2]
[313923009,1707825045352,-3000.0,0.0002896,2]
[313923011,1707825045361,-3000.0,0.0002897,2]
[313923013,1707825045371,-3379.794553,0.0002898,2]
[313923017,1707825045380,-450.0,0.00029,3]
[313923019,1707825045390,-4948.1452447,0.00029028,2]
[313923023,1707825045400,-201.8,0.00029031,2]
[313923026,1707825045409,-538.89540803,0.00029041,2]
[313923029,1707825045419,-500.0,0.00029041,2]
[313923031,1707825045428,-305.75,0.00029041,2]
[313923033,1707825045437,-500.0,0.00029041,2]
[313923035,1707825045448,-1084.78,0.00029041,2]
[313923037,1707825045458,-500.0,0.00029041,2]
[313923039,1707825045467,-1517.97,0.00029041,2]
[313923041,1707825045476,-546.0416518,0.00029041,2]
[313923043,1707825045486,-500.0,0.00029041,2]
[313923045,1707825045495,-606.17,0.00029041,2]
[313923047,1707825045505,-500.0,0.00029041,2]
[313923049,1707825045514,-500.0,0.00029041,2]
[313923051,1707825045523,-500.0,0.00029041,2]
[313923053,1707825045532,-500.0,0.00029041,2]
[313923055,1707825045542,-20833.33,0.00029041,2]
[313923057,1707825045551,-855.21,0.00029041,2]
[313923059,1707825045561,-500.0,0.00029041,2]
[313923061,1707825045570,-500.0,0.00029041,2]
[313923063,1707825045579,-500.0,0.00029041,2]
[313923065,1707825045588,-300.0,0.00029066,2]
[313923067,1707825045597,-300.0,0.00029066,2]
[313923069,1707825045606,-300.0,0.00029066,2]
[313923070,1707825045615,-300.0,0.00029066,2]
[313923073,1707825045625,-300.0,0.00029066,2]
[313923074,1707825045634,-300.0,0.00029066,2]
[313923076,1707825045644,-300.0,0.00029066,2]
[313923077,1707825045657,-161.10672897,0.00029067,2]
[313923078,1707825045667,-155.4861027,0.00029067,2]
[313923079,1707825045676,-674.56,0.00029067,2]
[313923080,1707825045685,-3119.41957519,0.00029097,2]
[313923081,1707825045696,-319.17669093,0.00029099,2]
[313923082,1707825045705,-3000.0,0.000291,2]
[313923083,1707825045715,-3000.0,0.0002911,2]
[313923084,1707825045726,-3000.0,0.0002912,2]
[313923085,1707825045735,-3000.0,0.0002913,2]
[313923086,1707825045744,-3000.0,0.0002914,2]
[313923087,1707825045753,-3000.0,0.0002915,2]
[313923088,1707825045762,-161.27842766,0.00029158,2]
[313923089,1707825045772,-1064.16944181,0.00029159,2]
[313923090,1707825045781,-208.93722991,0.00029159,30]
[313923091,1707825045791,-355.0732788,0.00029159,2]
[313923092,1707825045800,-155.52207493,0.00029159,2]
[313923093,1707825045810,-746.9663357,0.0002916,2]
[313923094,1707825045819,-3000.0,0.0002916,2]
[313923095,1707825045829,-3000.0,0.0002917,2]
[313923096,1707825045838,-4003.066327,0.0002918,2]
[313923098,1707825045847,-4948.1452447,0.00029215,2]
[313923100,1707825045857,-823.05601306,0.00029233,2]
[313923102,1707825045867,-12343.0,0.000293,2]
[313923106,1707825046020,-2546.0,0.000293,2]
[313923107,1707825046029,-500.0,0.00029315,2]
[313923108,1707825046039,-510.2396397,0.00029315,2]
[313923109,1707825046049,-1084.78,0.00029315,2]
[313923110,1707825046058,-500.0,0.00029315,2]
[313923111,1707825046067,-1517.97,0.00029315,2]
[313923112,1707825046077,-500.0,0.00029315,2]
[313923113,1707825046086,-500.0,0.00029315,2]
[313923114,1707825046095,-500.0,0.00029315,2]
[313923115,1707825046104,-500.0,0.00029315,2]
[313923116,1707825046114,-500.0,0.00029315,2]
[313923117,1707825046123,-20833.33,0.00029315,2]
[313923118,1707825046132,-855.21,0.00029315,2]
[313923119,1707825046141,-500.0,0.00029315,2]
[313923120,1707825046150,-192.5762836,0.00029315,2]
[313923121,1707825046159,-500.0,0.00029315,2]
[313923122,1707825046168,-674.56,0.00029341,2]
[313923123,1707825046177,-4948.1452447,0.00029403,2]
[313923124,1707825046187,-228.9851885,0.000295,3]
[313923125,1707825046197,-500.0,0.00029589,2]
[313923126,1707825046206,-1084.78,0.00029589,2]
[313923127,1707825046215,-500.0,0.00029589,2]
[313923128,1707825046223,-1517.97,0.00029589,2]
[313923129,1707825046233,-500.0,0.00029589,2]
[313923130,1707825046242,-410.32453293,0.00029589,2]
[313923131,1707825046251,-500.0,0.00029589,2]
[313923132,1707825046261,-500.0,0.00029589,2]
[313923133,1707825046271,-500.0,0.00029589,2]
[313923134,1707825046281,-20833.33,0.00029589,2]
[313923135,1707825046290,-855.21,0.00029589,2]
[313923136,1707825046299,-500.0,0.00029589,2]
[313923137,1707825046308,-4948.1452447,0.0002959,2]
[313923138,1707825046317,-577.4073315,0.00029595,2]
[313923139,1707825046326,-674.56,0.00029615,2]
[313923140,1707825046335,-82969.04179923,0.00029695,7]
[313923141,1707825046344,-46024.89610826,0.00029695,7]
[313923142,1707825046354,-3745.1547029,0.00029695,7]
[313923143,1707825046363,-31673.8268414,0.00029695,7]
[313923144,1707825046373,-4948.1452447,0.00029777,2]
[313923145,1707825046382,-177.05384853,0.000298,2]
[313923146,1707825046392,-500.0,0.00029863,2]
[313923147,1707825046401,-1084.78,0.00029863,2]
[313923148,1707825046411,-500.0,0.00029863,2]
[313923149,1707825046420,-1517.97,0.00029863,2]
[313923150,1707825046429,-500.0,0.00029863,2]
[313923151,1707825046439,-500.0,0.00029863,2]
[313923152,1707825046448,-500.0,0.00029863,2]
[313923153,1707825046458,-203.55989973,0.00029863,2]
[313923154,1707825046467,-20833.33,0.00029863,2]
[313923155,1707825046477,-855.21,0.00029863,2]
[313923156,1707825046486,-500.0,0.00029863,2]
[313923157,1707825046495,-674.56,0.00029889,2]
[313923158,1707825046505,-160.0,0.000299,2]
[313923159,1707825046514,-4948.1452447,0.00029964,2]
[313923160,1707825046523,-162.74596975,0.00029968,2]
[313923161,1707825046532,-221.90597393,0.00029998,2]
[313923162,1707825046542,-2066.41870896,0.00029998,2]
[313923163,1707825046551,-187.345675,0.00029998,2]
[313923164,1707825046560,-7089.97136152,0.00029998,2]
[313923165,1707825046569,-234.87051219,0.00029998,2]
[313923166,1707825046578,-320.37248572,0.00029998,2]
[313923167,1707825046587,-202.08012209,0.00029998,2]
[313923168,1707825046596,-1680.6634743,0.00029998,2]
[313923169,1707825046607,-327.27480006,0.00029998,2]
[313923170,1707825046616,-168.26749515,0.00029998,2]
[313923171,1707825046626,-946.10396075,0.00029998,2]
[313923172,1707825046635,-622.62871689,0.00029998,2]
[313923173,1707825046645,-1591.80252541,0.00029998,2]
[313923174,1707825046654,-305.09660322,0.00029998,2]
[313923175,1707825046665,-938.20137126,0.00029998,2]
[313923176,1707825046674,-697.48549167,0.00029998,2]
[313923177,1707825046684,-342.9535079,0.00029999,2]
[313923178,1707825046695,-1351.26740038,0.00029999,2]
[313923179,1707825046705,-1013.26547405,0.00029999,2]
[313923180,1707825046715,-132619.04367547,0.00029999,2]
[313923181,1707825046724,-155.0,0.0003,2]
[313923182,1707825046733,-104833.02279013,0.0003,4]
[313923183,1707825046743,-10804.04385011,0.0003,4]
[313923184,1707825046752,-1605.08660143,0.0003,4]
[313923185,1707825046761,-514.30059909,0.0003,2]
[313923186,1707825046770,-1974.49802756,0.0003,4]
[313923187,1707825046779,-178.00257215,0.0003,4]
[313923188,1707825046788,-819.57435331,0.0003,4]
[313923189,1707825046798,-9693.7545825,0.0003,2]
[313923190,1707825046807,-2656.46928812,0.0003,4]
[313923191,1707825046816,-2000.8996116,0.0003,2]
[313923192,1707825046825,-155.0,0.0003,2]
[313923193,1707825046834,-1176.3664217,0.0003,4]
[313923194,1707825046843,-169.66245053,0.0003,4]
[313923195,1707825046852,-172.42709545,0.0003,5]
[313923196,1707825046862,-1817.93660883,0.0003,4]
[313923197,1707825046871,-891.22734749,0.0003,4]
[313923198,1707825046880,-3000.0,0.0003,2]
[313923199,1707825046889,-644.56959363,0.0003,2]
[313923200,1707825046898,-200.5720953,0.0003,4]
[313923201,1707825046907,-4978.14168301,0.0003,4]
[313923202,1707825046916,-3000.0,0.0003,2]
[313923203,1707825046925,-3000.0,0.0003001,2]
[313923204,1707825046934,-5475.95891,0.0003002,2]
[313923205,1707825046944,-201.8,0.00030058,2]
[313923206,1707825046953,-2833.0,0.00030129,2]
[313923207,1707825046962,-841.0,0.00030129,2]
[313923208,1707825046971,-1231.0,0.00030129,2]
[313923209,1707825046980,-321.0,0.00030129,2]
[313923210,1707825046989,-453.0,0.00030129,2]
[313923211,1707825046999,-1181.28,0.00030129,2]
[313923212,1707825047008,-18815.257,0.00030129,2]
[313923213,1707825047017,-7409.0,0.00030129,2]
[313923214,1707825047026,-8158.0,0.00030129,2]
[313923215,1707825047034,-2288.0,0.00030129,2]
[313923216,1707825047044,-150.0,0.00030129,2]
[313923217,1707825047053,-596.963,0.00030129,2]
[313923218,1707825047062,-500.0,0.00030136,2]
[313923219,1707825047071,-1084.78,0.00030136,2]
[313923220,1707825047080,-447.75059531,0.00030136,2]
[313923221,1707825047089,-1517.97,0.00030136,2]
[313923222,1707825047098,-500.0,0.00030136,2]
[313923223,1707825047108,-500.0,0.00030136,2]
[313923224,1707825047117,-500.0,0.00030136,2]
[313923225,1707825047127,-20833.33,0.00030136,2]
[313923226,1707825047136,-855.21,0.00030136,2]
[313923227,1707825047157,-500.0,0.00030136,2]
[313923228,1707825047166,-150.51,0.00030137,2]
[313923229,1707825047176,-4948.1452447,0.00030151,2]
[313923230,1707825047185,-674.56,0.00030163,2]
[313923231,1707825047195,-469.75,0.00030325,2]
[313923232,1707825047205,-4948.1452447,0.00030338,2]
[313923233,1707825047215,-152.79601926,0.00030403,2]
[313923234,1707825047224,-151.20444274,0.0003041,2]
[313923235,1707825047234,-1084.78,0.0003041,2]
[313923236,1707825047243,-1517.97,0.0003041,2]
[313923237,1707825047252,-500.0,0.0003041,2]
[313923238,1707825047262,-358.07327978,0.0003041,2]
[313923239,1707825047271,-500.0,0.0003041,2]
[313923240,1707825047281,-20833.33,0.0003041,2]
[313923241,1707825047291,-855.21,0.0003041,2]
[313923242,1707825047300,-500.0,0.0003041,2]
[313923243,1707825047309,-674.56,0.00030437,2]
[313923244,1707825047319,-4948.1452447,0.00030526,2]
[313923245,1707825047328,-840.0,0.00030641,2]
[313923246,1707825047338,-823.05601306,0.00030677,2]
[313923247,1707825047347,-1084.78,0.00030684,2]
[313923248,1707825047357,-1517.97,0.00030684,2]
[313923249,1707825047366,-500.0,0.00030684,2]
[313923250,1707825047376,-500.0,0.00030684,2]
[313923251,1707825047385,-20833.33,0.00030684,2]
[313923252,1707825047395,-855.21,0.00030684,2]
[313923253,1707825047404,-500.0,0.00030684,2]
[313923254,1707825047414,-674.56,0.00030711,2]
[313923255,1707825047423,-4948.1452447,0.00030713,2]
[313923256,1707825047433,-4948.1452447,0.000309,2]
[313923257,1707825047443,-1084.78,0.00030958,2]
[313923258,1707825047453,-1517.97,0.00030958,2]
[313923259,1707825047463,-499.55973453,0.00030958,2]
[313923260,1707825047473,-500.0,0.00030958,2]
[313923261,1707825047482,-20833.33,0.00030958,2]
[313923262,1707825047492,-855.21,0.00030958,2]